[Event "Titled Tuesday Blitz November 22 Late 2022"]
[White "Graif, William"]
[Black "Marchesich, Giovanni"]
[WhiteFideId "2609835"]
[BlackFideId "2824790"]
[WhiteElo "2205"]
[BlackElo "2200"]
[Result "0-1"]
[Round "02"]
[TimeControl "180+1"]
[Date "2022.11.23"]
[WhiteClock "0:00:01"]
[BlackClock "0:00:10"]

1. e4 {[%clk 0:02:54]}  d6 {[%clk 0:03:00]} 2. Nc3 {[%clk 0:02:52]}  g6 {[%clk 0:03:00]} 3. f4 {[%clk 0:02:45]}  Bg7 {[%clk 0:03:00]} 4. Bc4 {[%clk 0:02:43]}  Nh6 {[%clk 0:02:58]} 5. Nf3 {[%clk 0:02:41]}  e6 {[%clk 0:02:58]} 6. O-O {[%clk 0:02:35]}  O-O {[%clk 0:02:58]} 7. d3 {[%clk 0:02:32]}  c6 {[%clk 0:02:59]} 8. Bb3 {[%clk 0:02:23]}  d5 {[%clk 0:02:59]} 9. Qe1 {[%clk 0:02:19]}  Na6 {[%clk 0:02:47]} 10. Qg3 {[%clk 0:01:43]}  Nc5 {[%clk 0:02:47]} 11. Qh3 {[%clk 0:01:32]}  Nxb3 {[%clk 0:02:46]} 12. axb3 {[%clk 0:01:32]}  f5 {[%clk 0:02:46]} 13. e5 {[%clk 0:01:19]}  b6 {[%clk 0:02:35]} 14. Be3 {[%clk 0:01:04]}  Bb7 {[%clk 0:02:31]} 15. d4 {[%clk 0:00:47]}  a6 {[%clk 0:02:24]} 16. Ng5 {[%clk 0:00:44]}  Qe7 {[%clk 0:02:24]} 17. Na4 {[%clk 0:00:43]}  b5 {[%clk 0:02:11]} 18. Nc5 {[%clk 0:00:40]}  Bc8 {[%clk 0:02:12]} 19. Bd2 {[%clk 0:00:36]}  Rf7 {[%clk 0:01:54]} 20. Bb4 {[%clk 0:00:31]}  Qe8 {[%clk 0:01:55]} 21. Nxf7 {[%clk 0:00:20]}  Nxf7 {[%clk 0:01:51]} 22. Ra5 {[%clk 0:00:20]}  Bf8 {[%clk 0:01:50]} 23. Nd3 {[%clk 0:00:18]}  Bxb4 {[%clk 0:01:47]} 24. Nxb4 {[%clk 0:00:19]}  Bb7 {[%clk 0:01:43]} 25. Rfa1 {[%clk 0:00:18]}  Qc8 {[%clk 0:01:42]} 26. Qc3 {[%clk 0:00:18]}  Nd8 {[%clk 0:01:42]} 27. Nd3 {[%clk 0:00:18]}  Qc7 {[%clk 0:01:41]} 28. Nc5 {[%clk 0:00:18]}  Qb6 {[%clk 0:01:41]} 29. Kh1 {[%clk 0:00:17]}  b4 {[%clk 0:01:34]} 30. Qd3 {[%clk 0:00:17]}  Kf7 {[%clk 0:01:33]} 31. Qh3 {[%clk 0:00:15]}  Kg7 {[%clk 0:01:31]} 32. Nd7 {[%clk 0:00:14]}  Qxd4 {[%clk 0:01:28]} 33. Nf6 {[%clk 0:00:14]}  h5 {[%clk 0:01:22]} 34. Qg3 {[%clk 0:00:13]}  Nf7 {[%clk 0:01:10]} 35. Nxh5+ {[%clk 0:00:13]}  Kh7 {[%clk 0:01:10]} 36. Nf6+ {[%clk 0:00:13]}  Kg7 {[%clk 0:01:11]} 37. R5a2 {[%clk 0:00:12]}  Rh8 {[%clk 0:01:07]} 38. Rf1 {[%clk 0:00:11]}  c5 {[%clk 0:01:07]} 39. Raa1 {[%clk 0:00:11]}  Qxb2 {[%clk 0:00:55]} 40. Rac1 {[%clk 0:00:11]}  d4 {[%clk 0:00:51]} 41. Rg1 {[%clk 0:00:08]}  a5 {[%clk 0:00:34]} 42. Ra1 {[%clk 0:00:07]}  Qxc2 {[%clk 0:00:32]} 43. Rxa5 {[%clk 0:00:07]}  d3 {[%clk 0:00:27]} 44. Ra7 {[%clk 0:00:07]}  d2 {[%clk 0:00:25]} 45. Rxb7 {[%clk 0:00:06]}  d1=Q {[%clk 0:00:25]} 46. Qe3 {[%clk 0:00:04]}  Qd4 {[%clk 0:00:14]} 47. Qe1 {[%clk 0:00:02]}  Qcf2 {[%clk 0:00:11]} 48. Qc1 {[%clk 0:00:01]}  Rxh2+ {[%clk 0:00:10]} 0-1


[Site "https://www.chess.com"]

[Event "Titled Tuesday Blitz November 22 Late 2022"]
[White "Granados Diaz, Maria Esther"]
[Black "Taboas Rodriguez, Daniel"]
[WhiteFideId "6101488"]
[BlackFideId "2208466"]
[WhiteElo "1872"]
[BlackElo "2329"]
[Result "0-1"]
[Round "02"]
[TimeControl "180+1"]
[Date "2022.11.23"]
[WhiteClock "0:00:24"]
[BlackClock "0:00:17"]

1. e4 {[%clk 0:03:00]}  e5 {[%clk 0:02:51]} 2. Bc4 {[%clk 0:02:59]}  Nf6 {[%clk 0:02:51]} 3. Nf3 {[%clk 0:02:58]}  Nxe4 {[%clk 0:02:47]} 4. Qe2 {[%clk 0:02:51]}  d5 {[%clk 0:02:45]} 5. Bb3 {[%clk 0:02:40]}  Nc6 {[%clk 0:02:32]} 6. d3 {[%clk 0:02:37]}  Nf6 {[%clk 0:02:31]} 7. Nxe5 {[%clk 0:02:37]}  Nxe5 {[%clk 0:01:39]} 8. Qxe5+ {[%clk 0:02:34]}  Be6 {[%clk 0:01:39]} 9. O-O {[%clk 0:02:31]}  Bd6 {[%clk 0:01:39]} 10. Qe2 {[%clk 0:02:23]}  O-O {[%clk 0:01:38]} 11. Bg5 {[%clk 0:02:21]}  Re8 {[%clk 0:01:37]} 12. Qf3 {[%clk 0:02:10]}  Be5 {[%clk 0:01:26]} 13. Nc3 {[%clk 0:01:59]}  h6 {[%clk 0:01:24]} 14. Bh4 {[%clk 0:01:57]}  g5 {[%clk 0:01:14]} 15. Bg3 {[%clk 0:01:56]}  Bg4 {[%clk 0:01:15]} 16. Qe3 {[%clk 0:01:04]}  d4 {[%clk 0:00:57]} 17. Qd2 {[%clk 0:01:02]}  dxc3 {[%clk 0:00:57]} 18. bxc3 {[%clk 0:01:03]}  Qd6 {[%clk 0:00:52]} 19. d4 {[%clk 0:01:02]}  Bxg3 {[%clk 0:00:51]} 20. fxg3 {[%clk 0:01:03]}  Kg7 {[%clk 0:00:40]} 21. Rf2 {[%clk 0:00:40]}  Be6 {[%clk 0:00:30]} 22. Raf1 {[%clk 0:00:37]}  Bxb3 {[%clk 0:00:30]} 23. Rxf6 {[%clk 0:00:36]}  Qxf6 {[%clk 0:00:19]} 24. Rxf6 {[%clk 0:00:37]}  Kxf6 {[%clk 0:00:20]} 25. cxb3 {[%clk 0:00:32]}  Re6 {[%clk 0:00:20]} 26. Qf2+ {[%clk 0:00:31]}  Kg7 {[%clk 0:00:21]} 27. h4 {[%clk 0:00:30]}  Rae8 {[%clk 0:00:20]} 28. d5 {[%clk 0:00:25]}  Re2 {[%clk 0:00:17]} 29. Qd4+ {[%clk 0:00:25]}  Kg6 {[%clk 0:00:17]} 30. c4 {[%clk 0:00:20]}  Rxa2 {[%clk 0:00:14]} 31. Qd3+ {[%clk 0:00:19]}  Kg7 {[%clk 0:00:14]} 32. Qc3+ {[%clk 0:00:17]}  f6 {[%clk 0:00:14]} 33. h5 {[%clk 0:00:15]}  Ree2 {[%clk 0:00:11]} 34. Qd3 {[%clk 0:00:12]}  Rxg2+ {[%clk 0:00:12]} 35. Kf1 {[%clk 0:00:11]}  Rgf2+ {[%clk 0:00:08]} 36. Ke1 {[%clk 0:00:11]}  f5 {[%clk 0:00:09]} 37. Qd4+ {[%clk 0:00:11]}  Kf7 {[%clk 0:00:09]} 38. d6 {[%clk 0:00:10]}  Rae2+ {[%clk 0:00:08]} 39. Kd1 {[%clk 0:00:11]}  Rd2+ {[%clk 0:00:08]} 40. Qxd2 {[%clk 0:00:11]}  Rxd2+ {[%clk 0:00:09]} 41. Kxd2 {[%clk 0:00:11]}  cxd6 {[%clk 0:00:10]} 42. Kd3 {[%clk 0:00:12]}  Ke6 {[%clk 0:00:10]} 43. Kd4 {[%clk 0:00:13]}  b6 {[%clk 0:00:10]} 44. b4 {[%clk 0:00:14]}  a5 {[%clk 0:00:11]} 45. b5 {[%clk 0:00:13]}  a4 {[%clk 0:00:09]} 46. Kc3 {[%clk 0:00:14]}  f4 {[%clk 0:00:09]} 47. gxf4 {[%clk 0:00:14]}  gxf4 {[%clk 0:00:10]} 48. Kb4 {[%clk 0:00:14]}  f3 {[%clk 0:00:11]} 49. Kxa4 {[%clk 0:00:14]}  f2 {[%clk 0:00:11]} 50. Kb4 {[%clk 0:00:15]}  f1=Q {[%clk 0:00:12]} 51. c5 {[%clk 0:00:16]}  dxc5+ {[%clk 0:00:12]} 52. Ka4 {[%clk 0:00:17]}  Qf5 {[%clk 0:00:12]} 53. Ka3 {[%clk 0:00:18]}  Qxh5 {[%clk 0:00:13]} 54. Ka4 {[%clk 0:00:18]}  Qg4+ {[%clk 0:00:13]} 55. Ka3 {[%clk 0:00:19]}  Qb4+ {[%clk 0:00:14]} 56. Ka2 {[%clk 0:00:19]}  Qxb5 {[%clk 0:00:15]} 57. Ka3 {[%clk 0:00:20]}  c4 {[%clk 0:00:15]} 58. Ka2 {[%clk 0:00:21]}  c3 {[%clk 0:00:16]} 59. Ka3 {[%clk 0:00:21]}  c2 {[%clk 0:00:17]} 60. Ka2 {[%clk 0:00:22]}  Kd5 {[%clk 0:00:15]} 61. Ka3 {[%clk 0:00:23]}  c1=Q+ {[%clk 0:00:16]} 62. Ka2 {[%clk 0:00:24]}  Qcb2# {[%clk 0:00:17]} 0-1


[Site "https://www.chess.com"]

[Event "Titled Tuesday Blitz November 22 Late 2022"]
[White "Gritsenko, Nikolai"]
[Black "Shapiro, Daniel"]
[WhiteFideId "14112493"]
[BlackFideId "2001780"]
[WhiteElo "2389"]
[BlackElo "2313"]
[Result "1-0"]
[Round "02"]
[TimeControl "180+1"]
[Date "2022.11.23"]
[WhiteClock "0:00:11"]
[BlackClock "0:00:01"]

1. d4 {[%clk 0:03:00]}  Nf6 {[%clk 0:02:54]} 2. Bg5 {[%clk 0:03:00]}  Ne4 {[%clk 0:02:45]} 3. h4 {[%clk 0:02:58]}  c5 {[%clk 0:02:42]} 4. dxc5 {[%clk 0:02:58]}  h6 {[%clk 0:02:31]} 5. Be3 {[%clk 0:02:53]}  e6 {[%clk 0:02:29]} 6. Nd2 {[%clk 0:02:52]}  Nxc5 {[%clk 0:02:25]} 7. c4 {[%clk 0:02:50]}  Nc6 {[%clk 0:02:24]} 8. Ngf3 {[%clk 0:02:49]}  Be7 {[%clk 0:02:21]} 9. g3 {[%clk 0:02:47]}  b6 {[%clk 0:02:21]} 10. Bg2 {[%clk 0:02:46]}  Bb7 {[%clk 0:02:21]} 11. a3 {[%clk 0:02:41]}  a5 {[%clk 0:02:18]} 12. b3 {[%clk 0:02:34]}  d5 {[%clk 0:02:05]} 13. cxd5 {[%clk 0:02:32]}  exd5 {[%clk 0:02:02]} 14. Nd4 {[%clk 0:02:20]}  O-O {[%clk 0:02:00]} 15. O-O {[%clk 0:02:18]}  Bf6 {[%clk 0:01:58]} 16. N2f3 {[%clk 0:02:17]}  Ne4 {[%clk 0:01:57]} 17. Nxc6 {[%clk 0:02:10]}  Bxc6 {[%clk 0:01:56]} 18. Bd4 {[%clk 0:02:10]}  Rc8 {[%clk 0:01:32]} 19. Rc1 {[%clk 0:02:00]}  Qd6 {[%clk 0:01:09]} 20. Bxf6 {[%clk 0:01:55]}  Qxf6 {[%clk 0:01:04]} 21. Qd4 {[%clk 0:01:49]}  Bb7 {[%clk 0:00:48]} 22. Qxf6 {[%clk 0:01:44]}  Nxf6 {[%clk 0:00:48]} 23. Nd4 {[%clk 0:01:43]}  Ne4 {[%clk 0:00:47]} 24. Bh3 {[%clk 0:01:01]}  Rc3 {[%clk 0:00:42]} 25. Rxc3 {[%clk 0:00:56]}  Nxc3 {[%clk 0:00:42]} 26. Rc1 {[%clk 0:00:54]}  Ne4 {[%clk 0:00:35]} 27. Rc7 {[%clk 0:00:49]}  Ba6 {[%clk 0:00:34]} 28. Kg2 {[%clk 0:00:38]}  Re8 {[%clk 0:00:33]} 29. f3 {[%clk 0:00:30]}  Nc5 {[%clk 0:00:30]} 30. Kf2 {[%clk 0:00:28]}  Kf8 {[%clk 0:00:24]} 31. Rc6 {[%clk 0:00:27]}  Rb8 {[%clk 0:00:17]} 32. Rd6 {[%clk 0:00:26]}  a4 {[%clk 0:00:09]} 33. b4 {[%clk 0:00:24]}  Nb3 {[%clk 0:00:09]} 34. Rxd5 {[%clk 0:00:22]}  Bc4 {[%clk 0:00:07]} 35. Rd7 {[%clk 0:00:21]}  b5 {[%clk 0:00:06]} 36. e4 {[%clk 0:00:18]}  Re8 {[%clk 0:00:04]} 37. Ke3 {[%clk 0:00:15]}  Re7 {[%clk 0:00:04]} 38. Rxe7 {[%clk 0:00:15]}  Kxe7 {[%clk 0:00:04]} 39. Bc8 {[%clk 0:00:13]}  g6 {[%clk 0:00:04]} 40. Ba6 {[%clk 0:00:13]}  Kd6 {[%clk 0:00:02]} 41. Nxb5+ {[%clk 0:00:11]}  Ke7 {[%clk 0:00:01]} 42. Nc7 {[%clk 0:00:11]} 1-0


[Site "https://www.chess.com"]

[Event "Titled Tuesday Blitz November 22 Late 2022"]
[White "Grot, Blazej"]
[Black "Javakhadze, Zurab"]
[WhiteFideId "21835845"]
[BlackFideId "13603647"]
[WhiteElo "1822"]
[BlackElo "2381"]
[Result "0-1"]
[Round "02"]
[TimeControl "180+1"]
[Date "2022.11.23"]
[WhiteClock "0:00:02"]
[BlackClock "0:00:18"]

1. e4 {[%clk 0:02:51]}  c5 {[%clk 0:02:50]} 2. Nc3 {[%clk 0:02:51]}  Nc6 {[%clk 0:02:50]} 3. Bb5 {[%clk 0:02:51]}  Nd4 {[%clk 0:02:49]} 4. Nf3 {[%clk 0:02:52]}  e6 {[%clk 0:02:49]} 5. Nxd4 {[%clk 0:02:52]}  cxd4 {[%clk 0:02:49]} 6. Ne2 {[%clk 0:02:52]}  Qb6 {[%clk 0:02:44]} 7. Ba4 {[%clk 0:02:50]}  Nf6 {[%clk 0:02:42]} 8. d3 {[%clk 0:02:41]}  Qa5+ {[%clk 0:02:32]} 9. c3 {[%clk 0:02:41]}  dxc3 {[%clk 0:02:25]} 10. bxc3 {[%clk 0:02:41]}  Be7 {[%clk 0:02:23]} 11. O-O {[%clk 0:02:40]}  O-O {[%clk 0:02:24]} 12. f4 {[%clk 0:02:30]}  d5 {[%clk 0:02:21]} 13. e5 {[%clk 0:02:24]}  Nd7 {[%clk 0:02:21]} 14. d4 {[%clk 0:02:12]}  Nb6 {[%clk 0:02:19]} 15. Bc2 {[%clk 0:02:11]}  Bd7 {[%clk 0:02:20]} 16. f5 {[%clk 0:02:04]}  exf5 {[%clk 0:02:19]} 17. Bxf5 {[%clk 0:02:02]}  Bxf5 {[%clk 0:02:20]} 18. Rxf5 {[%clk 0:02:03]}  Nc4 {[%clk 0:02:16]} 19. Qd3 {[%clk 0:01:46]}  Qa6 {[%clk 0:02:14]} 20. Qg3 {[%clk 0:01:41]}  Qg6 {[%clk 0:02:09]} 21. Qh3 {[%clk 0:01:29]}  b5 {[%clk 0:01:53]} 22. Nf4 {[%clk 0:01:28]}  Qc6 {[%clk 0:01:53]} 23. Rh5 {[%clk 0:01:15]}  h6 {[%clk 0:01:43]} 24. e6 {[%clk 0:01:01]}  fxe6 {[%clk 0:01:34]} 25. Rxh6 {[%clk 0:00:43]}  gxh6 {[%clk 0:01:30]} 26. Qg4+ {[%clk 0:00:20]}  Bg5 {[%clk 0:01:23]} 27. h4 {[%clk 0:00:14]}  Rf5 {[%clk 0:00:51]} 28. hxg5 {[%clk 0:00:06]}  hxg5 {[%clk 0:00:52]} 29. Nh5 {[%clk 0:00:03]}  Qe8 {[%clk 0:00:42]} 30. Bxg5 {[%clk 0:00:03]}  Qg6 {[%clk 0:00:41]} 31. Nf6+ {[%clk 0:00:02]}  Rxf6 {[%clk 0:00:34]} 32. Re1 {[%clk 0:00:02]}  Rf5 {[%clk 0:00:32]} 33. Rxe6 {[%clk 0:00:01]}  Qxe6 {[%clk 0:00:20]} 34. Bh6+ {[%clk 0:00:01]}  Kf7 {[%clk 0:00:17]} 35. Qg7+ {[%clk 0:00:02]}  Ke8 {[%clk 0:00:18]} 36. Qh8+ {[%clk 0:00:02]}  Kd7 {[%clk 0:00:18]} 37. Qxa8 {[%clk 0:00:02]}  Qe1+ {[%clk 0:00:18]} 38. Kh2 {[%clk 0:00:02]}  Rh5# {[%clk 0:00:18]} 0-1


[Site "https://www.chess.com"]

[Event "Titled Tuesday Blitz November 22 Late 2022"]
[White "Gurevich, Dmitry"]
[Black "Makridis, Dimitrios"]
[WhiteFideId "2000407"]
[BlackFideId "25864475"]
[WhiteElo "2506"]
[BlackElo "2272"]
[Result "1-0"]
[Round "02"]
[TimeControl "180+1"]
[Date "2022.11.23"]
[WhiteClock "0:00:38"]
[BlackClock "0:00:02"]

1. d4 {[%clk 0:03:00]}  d5 {[%clk 0:02:37]} 2. c4 {[%clk 0:03:00]}  e6 {[%clk 0:02:35]} 3. Nc3 {[%clk 0:02:59]}  h6 {[%clk 0:02:34]} 4. e3 {[%clk 0:02:55]}  Nf6 {[%clk 0:02:33]} 5. Nf3 {[%clk 0:02:55]}  Bd6 {[%clk 0:02:31]} 6. Qc2 {[%clk 0:02:49]}  c6 {[%clk 0:02:27]} 7. b3 {[%clk 0:02:43]}  O-O {[%clk 0:02:26]} 8. Be2 {[%clk 0:02:43]}  Nbd7 {[%clk 0:02:25]} 9. O-O {[%clk 0:02:42]}  Qe7 {[%clk 0:02:26]} 10. Bb2 {[%clk 0:02:39]}  a6 {[%clk 0:02:17]} 11. a4 {[%clk 0:02:39]}  e5 {[%clk 0:02:09]} 12. cxd5 {[%clk 0:02:35]}  e4 {[%clk 0:01:41]} 13. Nh4 {[%clk 0:02:12]}  Nxd5 {[%clk 0:00:30]} 14. Nf5 {[%clk 0:02:09]}  Qe6 {[%clk 0:00:28]} 15. Nxd6 {[%clk 0:02:04]}  Nxc3 {[%clk 0:00:24]} 16. Qxc3 {[%clk 0:01:53]}  Qxd6 {[%clk 0:00:24]} 17. Ba3 {[%clk 0:01:53]}  c5 {[%clk 0:00:23]} 18. dxc5 {[%clk 0:01:30]}  Qc6 {[%clk 0:00:22]} 19. b4 {[%clk 0:01:26]}  Re8 {[%clk 0:00:15]} 20. b5 {[%clk 0:01:25]}  axb5 {[%clk 0:00:16]} 21. axb5 {[%clk 0:01:24]}  Qg6 {[%clk 0:00:17]} 22. Bh5 {[%clk 0:01:02]}  Qxh5 {[%clk 0:00:07]} 23. Bb2 {[%clk 0:01:01]}  Ne5 {[%clk 0:00:06]} 24. Rxa8 {[%clk 0:00:57]}  f6 {[%clk 0:00:02]} 25. Qb3+ {[%clk 0:00:40]}  Kh7 {[%clk 0:00:02]} 26. Bxe5 {[%clk 0:00:38]} 1-0


[Site "https://www.chess.com"]

[Event "Titled Tuesday Blitz November 22 Late 2022"]
[White "Haszon, David"]
[Black "Oganian, Miran"]
[WhiteFideId "733610"]
[BlackFideId "4122488"]
[WhiteElo "2211"]
[BlackElo "2323"]
[Result "0-1"]
[Round "02"]
[TimeControl "180+1"]
[Date "2022.11.23"]
[WhiteClock "0:00:02"]
[BlackClock "0:00:20"]

1. d4 {[%clk 0:03:00]}  e6 {[%clk 0:03:00]} 2. Nf3 {[%clk 0:03:00]}  d5 {[%clk 0:03:00]} 3. Bf4 {[%clk 0:03:00]}  Bd6 {[%clk 0:02:58]} 4. Bg3 {[%clk 0:03:00]}  Nf6 {[%clk 0:02:58]} 5. e3 {[%clk 0:02:57]}  O-O {[%clk 0:02:58]} 6. Nbd2 {[%clk 0:02:56]}  Nbd7 {[%clk 0:02:59]} 7. c3 {[%clk 0:02:53]}  Qe7 {[%clk 0:02:59]} 8. Ne5 {[%clk 0:02:53]}  Ne8 {[%clk 0:02:57]} 9. f4 {[%clk 0:02:52]}  f6 {[%clk 0:02:57]} 10. Nxd7 {[%clk 0:02:51]}  Bxd7 {[%clk 0:02:57]} 11. Nf3 {[%clk 0:02:52]}  g6 {[%clk 0:02:55]} 12. Bd3 {[%clk 0:02:52]}  Ng7 {[%clk 0:02:55]} 13. Qc2 {[%clk 0:02:52]}  c5 {[%clk 0:02:55]} 14. O-O {[%clk 0:02:48]}  Rac8 {[%clk 0:02:53]} 15. Rae1 {[%clk 0:02:46]}  b5 {[%clk 0:02:51]} 16. Qe2 {[%clk 0:02:42]}  c4 {[%clk 0:02:50]} 17. Bb1 {[%clk 0:02:40]}  f5 {[%clk 0:02:49]} 18. Bh4 {[%clk 0:02:34]}  Qf7 {[%clk 0:02:48]} 19. h3 {[%clk 0:02:31]}  b4 {[%clk 0:02:48]} 20. cxb4 {[%clk 0:02:24]}  c3 {[%clk 0:02:45]} 21. a3 {[%clk 0:02:16]}  Qe8 {[%clk 0:02:39]} 22. Bd3 {[%clk 0:02:05]}  cxb2 {[%clk 0:02:37]} 23. Qxb2 {[%clk 0:02:05]}  Bb5 {[%clk 0:02:38]} 24. Qe2 {[%clk 0:01:54]}  Bxd3 {[%clk 0:02:34]} 25. Qxd3 {[%clk 0:01:55]}  Qa4 {[%clk 0:02:32]} 26. Rc1 {[%clk 0:01:52]}  a5 {[%clk 0:02:31]} 27. bxa5 {[%clk 0:01:47]}  Qxa5 {[%clk 0:02:27]} 28. Bg5 {[%clk 0:01:25]}  Bxa3 {[%clk 0:02:19]} 29. Ra1 {[%clk 0:01:22]}  Rc3 {[%clk 0:02:18]} 30. Qd2 {[%clk 0:01:18]}  Rfc8 {[%clk 0:02:11]} 31. Ra2 {[%clk 0:01:18]}  Nh5 {[%clk 0:01:59]} 32. Kh2 {[%clk 0:01:14]}  Qb4 {[%clk 0:01:57]} 33. Rfa1 {[%clk 0:01:07]}  Qd6 {[%clk 0:01:33]} 34. Rb1 {[%clk 0:00:56]}  Bc1 {[%clk 0:01:32]} 35. Qe2 {[%clk 0:00:53]}  Bxe3 {[%clk 0:01:30]} 36. g3 {[%clk 0:00:40]}  Qc7 {[%clk 0:01:12]} 37. Rbb2 {[%clk 0:00:35]}  Kg7 {[%clk 0:01:07]} 38. Qa6 {[%clk 0:00:22]}  Qd7 {[%clk 0:00:55]} 39. Rb7 {[%clk 0:00:22]}  R3c7 {[%clk 0:00:56]} 40. Rxc7 {[%clk 0:00:22]}  Rxc7 {[%clk 0:00:56]} 41. Ne5 {[%clk 0:00:21]}  Qc8 {[%clk 0:00:51]} 42. Qe2 {[%clk 0:00:17]}  Bxd4 {[%clk 0:00:50]} 43. g4 {[%clk 0:00:15]}  Nf6 {[%clk 0:00:47]} 44. Bxf6+ {[%clk 0:00:15]}  Kxf6 {[%clk 0:00:48]} 45. gxf5 {[%clk 0:00:13]}  exf5 {[%clk 0:00:44]} 46. Qd3 {[%clk 0:00:11]}  Bxe5 {[%clk 0:00:39]} 47. fxe5+ {[%clk 0:00:12]}  Kg7 {[%clk 0:00:40]} 48. Qxd5 {[%clk 0:00:10]}  Rc2+ {[%clk 0:00:40]} 49. Rxc2 {[%clk 0:00:10]}  Qxc2+ {[%clk 0:00:41]} 50. Kg3 {[%clk 0:00:09]}  Qc3+ {[%clk 0:00:41]} 51. Kg2 {[%clk 0:00:09]}  f4 {[%clk 0:00:32]} 52. Qd7+ {[%clk 0:00:09]}  Kh6 {[%clk 0:00:32]} 53. e6 {[%clk 0:00:09]}  Qg3+ {[%clk 0:00:31]} 54. Kf1 {[%clk 0:00:09]}  f3 {[%clk 0:00:30]} 55. Qd2+ {[%clk 0:00:08]}  g5 {[%clk 0:00:30]} 56. e7 {[%clk 0:00:07]}  Qxh3+ {[%clk 0:00:30]} 57. Kg1 {[%clk 0:00:07]}  Qg4+ {[%clk 0:00:26]} 58. Kf1 {[%clk 0:00:06]}  Qh3+ {[%clk 0:00:25]} 59. Kg1 {[%clk 0:00:06]}  Qe6 {[%clk 0:00:25]} 60. Qd8 {[%clk 0:00:02]}  Qe1+ {[%clk 0:00:21]} 61. Kh2 {[%clk 0:00:02]}  Qe2+ {[%clk 0:00:21]} 62. Kh3 {[%clk 0:00:02]}  Qg2# {[%clk 0:00:20]} 0-1


[Site "https://www.chess.com"]

[Event "Titled Tuesday Blitz November 22 Late 2022"]
[White "Ivic, Velimir"]
[Black "Yurovskykh, Oleksandr"]
[WhiteFideId "950122"]
[BlackFideId "14134020"]
[WhiteElo "2851"]
[BlackElo "2563"]
[Result "1-0"]
[Round "02"]
[TimeControl "180+1"]
[Date "2022.11.23"]
[WhiteClock "0:00:51"]
[BlackClock "0:00:33"]

1. d4 {[%clk 0:02:51]}  d5 {[%clk 0:02:59]} 2. c4 {[%clk 0:02:52]}  e6 {[%clk 0:02:59]} 3. Nf3 {[%clk 0:02:51]}  Nf6 {[%clk 0:02:59]} 4. g3 {[%clk 0:02:52]}  Bb4+ {[%clk 0:02:59]} 5. Bd2 {[%clk 0:02:51]}  Be7 {[%clk 0:02:59]} 6. Bg2 {[%clk 0:02:52]}  O-O {[%clk 0:02:59]} 7. O-O {[%clk 0:02:52]}  c6 {[%clk 0:03:00]} 8. Qc2 {[%clk 0:02:52]}  Nbd7 {[%clk 0:03:00]} 9. b3 {[%clk 0:02:52]}  b6 {[%clk 0:02:59]} 10. Nc3 {[%clk 0:02:53]}  Ba6 {[%clk 0:02:58]} 11. e4 {[%clk 0:02:53]}  dxc4 {[%clk 0:02:57]} 12. Rfe1 {[%clk 0:02:53]}  cxb3 {[%clk 0:02:53]} 13. axb3 {[%clk 0:02:54]}  Bb7 {[%clk 0:02:53]} 14. h4 {[%clk 0:02:50]}  c5 {[%clk 0:02:52]} 15. e5 {[%clk 0:02:42]}  Nd5 {[%clk 0:02:50]} 16. Ne4 {[%clk 0:02:43]}  h6 {[%clk 0:02:29]} 17. Qc1 {[%clk 0:02:34]}  Kh7 {[%clk 0:02:18]} 18. Qb1 {[%clk 0:02:22]}  Kh8 {[%clk 0:02:17]} 19. g4 {[%clk 0:02:19]}  cxd4 {[%clk 0:02:13]} 20. g5 {[%clk 0:02:19]}  h5 {[%clk 0:02:11]} 21. g6 {[%clk 0:02:10]}  fxg6 {[%clk 0:02:11]} 22. Neg5 {[%clk 0:02:06]}  Rf5 {[%clk 0:01:46]} 23. Nxe6 {[%clk 0:02:06]}  Qg8 {[%clk 0:01:35]} 24. Nexd4 {[%clk 0:02:00]}  Raf8 {[%clk 0:01:35]} 25. Nxf5 {[%clk 0:01:57]}  Rxf5 {[%clk 0:01:36]} 26. e6 {[%clk 0:01:53]}  Nc5 {[%clk 0:01:24]} 27. Nd4 {[%clk 0:01:30]}  Qf8 {[%clk 0:00:46]} 28. Nxf5 {[%clk 0:01:17]}  gxf5 {[%clk 0:00:46]} 29. Bg5 {[%clk 0:01:09]}  Nc3 {[%clk 0:00:34]} 30. Bxe7 {[%clk 0:00:50]}  Qxe7 {[%clk 0:00:34]} 31. Qxf5 {[%clk 0:00:51]}  Bxg2 {[%clk 0:00:33]} 32. Kxg2 {[%clk 0:00:51]} 1-0


[Site "https://www.chess.com"]

[Event "Titled Tuesday Blitz November 22 Late 2022"]
[White "Jarmula, Lukasz"]
[Black "Deac, Bogdan-Daniel"]
[WhiteFideId "1160664"]
[BlackFideId "1226380"]
[WhiteElo "2357"]
[BlackElo "2648"]
[Result "0-1"]
[Round "02"]
[TimeControl "180+1"]
[Date "2022.11.22"]
[WhiteClock "0:00:01"]
[BlackClock "0:00:05"]

1. e4 {[%clk 0:03:00]}  c6 {[%clk 0:02:59]} 2. d4 {[%clk 0:02:59]}  d5 {[%clk 0:03:00]} 3. Nd2 {[%clk 0:03:00]}  a6 {[%clk 0:02:59]} 4. Ngf3 {[%clk 0:02:59]}  Bg4 {[%clk 0:02:59]} 5. c3 {[%clk 0:02:59]}  e6 {[%clk 0:02:58]} 6. Bd3 {[%clk 0:02:56]}  Nf6 {[%clk 0:02:56]} 7. e5 {[%clk 0:02:55]}  Nfd7 {[%clk 0:02:56]} 8. O-O {[%clk 0:02:50]}  c5 {[%clk 0:02:50]} 9. Qe2 {[%clk 0:02:44]}  Nc6 {[%clk 0:02:44]} 10. Qe3 {[%clk 0:02:44]}  Be7 {[%clk 0:02:37]} 11. a3 {[%clk 0:02:43]}  a5 {[%clk 0:02:24]} 12. h3 {[%clk 0:02:39]}  Bh5 {[%clk 0:02:23]} 13. Re1 {[%clk 0:02:38]}  O-O {[%clk 0:02:22]} 14. Nf1 {[%clk 0:02:33]}  Bxf3 {[%clk 0:02:14]} 15. Qxf3 {[%clk 0:02:26]}  cxd4 {[%clk 0:02:14]} 16. cxd4 {[%clk 0:02:26]}  Nxd4 {[%clk 0:00:54]} 17. Qg4 {[%clk 0:02:26]}  Nc6 {[%clk 0:00:54]} 18. Bh6 {[%clk 0:02:16]}  g6 {[%clk 0:00:53]} 19. Bf4 {[%clk 0:01:51]}  Re8 {[%clk 0:00:45]} 20. Rad1 {[%clk 0:01:49]}  Bf8 {[%clk 0:00:38]} 21. Nh2 {[%clk 0:01:47]}  Bg7 {[%clk 0:00:33]} 22. Nf3 {[%clk 0:01:47]}  Qb6 {[%clk 0:00:33]} 23. h4 {[%clk 0:01:39]}  h5 {[%clk 0:00:29]} 24. Qg3 {[%clk 0:01:38]}  Ne7 {[%clk 0:00:30]} 25. Ng5 {[%clk 0:01:23]}  Rac8 {[%clk 0:00:24]} 26. Be3 {[%clk 0:01:08]}  Qc7 {[%clk 0:00:20]} 27. Bd4 {[%clk 0:00:56]}  Nf8 {[%clk 0:00:06]} 28. Qf3 {[%clk 0:00:43]}  Nc6 {[%clk 0:00:05]} 29. Qe3 {[%clk 0:00:28]}  Nxd4 {[%clk 0:00:05]} 30. Qxd4 {[%clk 0:00:29]}  Qc5 {[%clk 0:00:05]} 31. Qf4 {[%clk 0:00:27]}  Qe7 {[%clk 0:00:05]} 32. Re3 {[%clk 0:00:21]}  Bh6 {[%clk 0:00:05]} 33. Rg3 {[%clk 0:00:19]}  Nh7 {[%clk 0:00:05]} 34. Re1 {[%clk 0:00:14]}  Nxg5 {[%clk 0:00:04]} 35. hxg5 {[%clk 0:00:15]}  Bg7 {[%clk 0:00:05]} 36. Rf3 {[%clk 0:00:13]}  Rc5 {[%clk 0:00:05]} 37. Qe3 {[%clk 0:00:12]}  Rec8 {[%clk 0:00:05]} 38. Kh2 {[%clk 0:00:12]}  Qc7 {[%clk 0:00:05]} 39. g3 {[%clk 0:00:12]}  Rc1 {[%clk 0:00:05]} 40. Rxc1 {[%clk 0:00:11]}  Qxc1 {[%clk 0:00:06]} 41. Qb6 {[%clk 0:00:11]}  Qc7 {[%clk 0:00:06]} 42. Qd4 {[%clk 0:00:10]}  Bxe5 {[%clk 0:00:06]} 43. Qe3 {[%clk 0:00:07]}  Bxb2 {[%clk 0:00:06]} 44. Rf4 {[%clk 0:00:06]}  Be5 {[%clk 0:00:06]} 45. Rh4 {[%clk 0:00:04]}  Bg7 {[%clk 0:00:05]} 46. Qf3 {[%clk 0:00:04]}  Qe7 {[%clk 0:00:05]} 47. Rf4 {[%clk 0:00:04]}  Rf8 {[%clk 0:00:05]} 48. Be2 {[%clk 0:00:03]}  e5 {[%clk 0:00:05]} 49. Ra4 {[%clk 0:00:03]}  e4 {[%clk 0:00:05]} 50. Qf4 {[%clk 0:00:03]}  Be5 {[%clk 0:00:06]} 51. Qe3 {[%clk 0:00:03]}  Qc7 {[%clk 0:00:05]} 52. f4 {[%clk 0:00:01]}  Bg7 {[%clk 0:00:05]} 53. Qf2 {[%clk 0:00:01]}  Qc6 {[%clk 0:00:05]} 0-1


[Site "https://www.chess.com"]